bitfinex/quotes_BTCUSD_20250922
["timestamp","ask_amount","ask_price","bid_price","bid_amount"]
[1758502021012,0.0004703,114970.0,114960.0,1.01575762]
[1758502021443,0.0004703,114970.0,114960.0,0.69439762]
[1758502021900,0.0004703,114970.0,114960.0,1.01567762]
[1758502023469,0.0004703,114970.0,114960.0,0.69439762]
[1758502023716,0.0004703,114970.0,114960.0,1.01547762]
[1758502025609,0.0004703,114970.0,114960.0,1.28517762]
[1758502029831,0.0004703,114970.0,114960.0,1.73317762]
[1758502030251,0.0004703,114970.0,114960.0,1.76332952]
[1758502031108,0.0004703,114970.0,114960.0,1.75832952]
[1758502031523,0.0014703,114970.0,114960.0,1.76732952]
[1758502032174,0.0014703,114970.0,114960.0,1.75532952]
[1758502032377,0.0014703,114970.0,114960.0,1.40409762]
[1758502032587,0.0014703,114970.0,114960.0,1.72437762]
[1758502032986,0.0014703,114970.0,114960.0,1.74037762]
[1758502034445,0.0233,115000.0,114990.0,0.17392816]
[1758502034630,0.0233,115000.0,114990.0,0.8477671]
[1758502035314,0.0233,115000.0,114990.0,0.67383894]
[1758502035520,0.0233,115000.0,114990.0,0.68283894]
[1758502036216,0.0233,115000.0,114990.0,0.36259894]
[1758502036467,0.17394729,114980.0,114960.0,0.19916454]
[1758502036672,1.32651137,114970.0,114960.0,0.19921165]
[1758502036844,1.75508887,114970.0,114960.0,0.19921165]
[1758502037049,1.23347268,114970.0,114960.0,0.19921165]
[1758502037257,0.89354617,114970.0,114960.0,0.19921165]
[1758502037452,1.33736149,114970.0,114960.0,0.19921165]
[1758502037906,1.22142242,114970.0,114960.0,0.19921165]
[1758502038109,1.39538084,114970.0,114960.0,0.19921165]
[1758502038313,1.21334617,114970.0,114960.0,0.19921165]
[1758502038543,1.6490851,114970.0,114960.0,0.19921165]
[1758502038755,1.80655053,114970.0,114960.0,0.19921165]
[1758502038955,1.80643053,114970.0,114960.0,0.19921165]
[1758502039086,1.82257001,114970.0,114960.0,0.19921165]
[1758502039285,1.80643053,114970.0,114960.0,0.19921165]
[1758502039505,1.91383123,114970.0,114960.0,0.19921165]
[1758502039718,1.51694689,114970.0,114960.0,0.19921165]
[1758502039916,1.83658689,114970.0,114960.0,0.19921165]
[1758502040117,1.40120992,114970.0,114960.0,0.19921165]
[1758502040317,1.84255099,114970.0,114960.0,0.19921165]
[1758502040556,1.8569042,114970.0,114960.0,0.19921165]
[1758502040808,1.5372642,114970.0,114960.0,0.19921165]
[1758502040965,1.8569042,114970.0,114960.0,0.19921165]
[1758502041393,1.96680743,114970.0,114960.0,0.19921165]
[1758502042034,1.96668743,114970.0,114960.0,0.19921165]
[1758502042871,1.99469172,114970.0,114960.0,0.19921165]
[1758502043012,1.99453172,114970.0,114960.0,0.19921165]
[1758502043219,1.57528578,114970.0,114960.0,0.19921165]
[1758502043459,1.99453172,114970.0,114960.0,0.19921165]
[1758502044084,1.98017851,114970.0,114960.0,0.19921165]
[1758502045077,1.99626863,114970.0,114960.0,0.19921165]
[1758502045283,1.99626213,114970.0,114960.0,0.19921165]
[1758502045719,1.6849438,114970.0,114960.0,0.19921165]
[1758502045932,1.97997851,114970.0,114960.0,0.19921165]
[1758502046143,2.08937268,114970.0,114960.0,0.19921165]
[1758502046356,1.74608818,114970.0,114960.0,0.19921165]
[1758502046581,2.06524818,114970.0,114960.0,0.19921165]
[1758502046993,1.74608818,114970.0,114960.0,0.19921165]
[1758502047214,2.06520818,114970.0,114960.0,0.19921165]
[1758502047427,2.08128093,114970.0,114960.0,0.19921165]
[1758502048035,1.77019713,114970.0,114960.0,0.19921165]
[1758502048257,2.08927713,114970.0,114960.0,0.19921165]
[1758502049541,2.08124093,114970.0,114960.0,0.19921165]
[1758502049754,7.13927333,114970.0,114960.0,0.19921165]
[1758502049976,7.11463977,114970.0,114960.0,0.19921165]
[1758502050587,7.41435977,114970.0,114960.0,0.19921165]
[1758502050792,7.43895333,114970.0,114960.0,0.19921165]
[1758502051019,7.12019333,114970.0,114960.0,0.19921165]
[1758502051846,7.43291333,114970.0,114960.0,0.19921165]
[1758502052058,7.44291333,114970.0,114960.0,0.19921165]
[1758502052257,7.19081214,114970.0,114960.0,0.19921165]
[1758502052464,7.49949214,114970.0,114960.0,0.19921165]
[1758502052658,7.51249214,114970.0,114960.0,0.19921165]
[1758502053091,7.49949214,114970.0,114960.0,0.19921165]
[1758502053299,7.50341214,114970.0,114960.0,0.19921165]
[1758502053925,7.49941214,114970.0,114960.0,0.19921165]
[1758502054136,7.49938521,114970.0,114960.0,0.19921165]
[1758502054338,7.49938521,114970.0,114960.0,0.20121165]
[1758502054962,7.506347,114970.0,114960.0,0.20221165]
[1758502055381,7.187747,114970.0,114960.0,0.20221165]
[1758502055593,7.506147,114970.0,114960.0,0.20221165]
[1758502055828,7.187747,114970.0,114960.0,0.20221165]
[1758502056055,7.506107,114970.0,114960.0,0.20221165]
[1758502056293,7.51974796,114970.0,114960.0,0.20221165]
[1758502058722,7.51958796,114970.0,114960.0,0.20221165]
[1758502058939,7.51954796,114970.0,114960.0,0.20221165]
[1758502060204,7.20138796,114970.0,114960.0,0.20221165]
[1758502060415,7.51954796,114970.0,114960.0,0.20221165]
[1758502060597,7.62986202,114970.0,114960.0,0.20221165]
[1758502061051,8.03247192,114970.0,114960.0,0.20221165]
[1758502061706,8.02645586,114970.0,114960.0,0.20221165]
[1758502061932,8.03247467,114970.0,114960.0,0.20221165]
[1758502063227,8.03219467,114970.0,114960.0,0.20221165]
[1758502064693,7.50797467,114970.0,114960.0,0.20221165]
[1758502064912,8.03219467,114970.0,114960.0,0.20221165]
[1758502065131,7.71431467,114970.0,114960.0,0.20221165]
[1758502065362,8.03211467,114970.0,114960.0,0.19404185]
[1758502065768,8.005485,114970.0,114960.0,0.19404185]
[1758502065981,8.29508071,114970.0,114960.0,0.19404185]
[1758502066274,7.77086071,114970.0,114960.0,0.19404185]
[1758502066470,7.97748071,114970.0,114960.0,0.19404185]
[1758502066678,8.27178071,114970.0,114960.0,0.19404185]
[1758502066887,3.50517071,114970.0,114960.0,0.19606185]
[1758502067099,3.51634,114970.0,114960.0,0.22030185]
[1758502067302,3.52936904,114970.0,114960.0,0.19404185]
[1758502067507,3.54807855,114970.0,114960.0,0.18995704]
[1758502067869,3.60623474,114970.0,114960.0,0.18995704]
[1758502069943,3.57823045,114970.0,114960.0,0.18995704]
[1758502070202,3.24200094,114970.0,114960.0,0.18995704]
[1758502070412,3.62354873,114970.0,114960.0,0.18995704]
[1758502070812,3.30626873,114970.0,114960.0,0.18995704]
[1758502070987,3.62350873,114970.0,114960.0,0.18995704]
[1758502071303,3.62350873,114970.0,114960.0,0.18178745]
[1758502071502,3.7087784,114970.0,114960.0,0.18178745]
[1758502071706,3.62350873,114970.0,114960.0,0.18178745]
[1758502072104,1.82568738,114970.0,114960.0,0.21111745]
[1758502072322,1.24012716,114970.0,114960.0,0.21111745]
[1758502072550,1.85408558,114970.0,114960.0,0.21111745]
[1758502072751,2.15406486,114970.0,114960.0,0.21111745]
[1758502072976,1.89209601,114970.0,114960.0,0.21111745]
[1758502073186,1.46678634,114970.0,114960.0,0.21111745]
[1758502073394,1.85678634,114970.0,114960.0,0.21111745]
[1758502073841,1.63220791,114970.0,114960.0,0.21111745]
[1758502074043,1.88693824,114970.0,114960.0,0.20911745]
[1758502074484,1.79192781,114970.0,114960.0,0.21611745]
[1758502074709,2.05589666,114970.0,114960.0,0.21611745]
[1758502075179,1.61996939,114970.0,114960.0,0.21611745]
[1758502075416,2.05589666,114970.0,114960.0,0.21611745]
[1758502075554,2.31786551,114970.0,114960.0,0.21611745]
[1758502075758,1.96720791,114970.0,114960.0,0.21611745]
[1758502077346,2.05589666,114970.0,114960.0,0.21611745]
[1758502077556,2.00589666,114970.0,114960.0,0.21611745]
[1758502077829,2.05589666,114970.0,114960.0,0.21611745]
[1758502078683,1.79392781,114970.0,114960.0,0.21611745]
[1758502078922,2.05589666,114970.0,114960.0,0.21611745]
[1758502079130,1.88193824,114970.0,114960.0,0.21611745]
[1758502079335,2.05589666,114970.0,114960.0,0.21611745]
[1758502080136,1.88193824,114970.0,114960.0,0.21611745]
[1758502080417,0.03209703,114970.0,114960.0,0.390091]
[1758502080628,0.37445881,114970.0,114960.0,0.21611745]
[1758502081042,0.32445881,114970.0,114960.0,0.21611745]
[1758502081255,0.81825348,114970.0,114960.0,0.20811745]
[1758502081566,1.42022233,114970.0,114960.0,0.20811745]
[1758502081764,1.52853798,114970.0,114960.0,0.22211745]
[1758502081992,1.52853798,114970.0,114960.0,0.20811745]
[1758502082202,1.62993196,114970.0,114960.0,0.20911745]
[1758502082408,1.71728163,114970.0,114960.0,0.22404745]
[1758502082618,1.71728163,114970.0,114960.0,0.18180745]
[1758502082619,2.27925048,114970.0,114960.0,0.18180745]
[1758502083038,2.27925048,114970.0,114960.0,0.19280745]
[1758502083259,2.27925048,114970.0,114960.0,0.21700745]
[1758502083485,2.30694404,114970.0,114960.0,0.19078745]
[1758502083689,2.33051404,114970.0,114960.0,0.18978745]
[1758502084100,1.95813716,114970.0,114960.0,0.19180745]
[1758502084324,1.43177874,114970.0,114960.0,0.20823745]
[1758502084569,1.48177874,114970.0,114960.0,0.20823745]
[1758502084777,1.66579617,114970.0,114960.0,0.21523745]
[1758502084973,1.66579617,114970.0,114960.0,0.20823745]
[1758502085180,1.38770301,114970.0,114960.0,0.20823745]
[1758502085385,1.72274848,114970.0,114960.0,0.20823745]
[1758502085586,1.46077963,114970.0,114960.0,0.20823745]
[1758502085784,1.72274848,114970.0,114960.0,0.20823745]
[1758502085989,1.72482848,114970.0,114960.0,0.20500745]
[1758502086398,1.98679733,114970.0,114960.0,0.17878745]
[1758502086611,2.01342733,114970.0,114960.0,0.17878745]
[1758502086808,1.98985733,114970.0,114960.0,0.17878745]
[1758502087012,2.03806089,114970.0,114960.0,0.17878745]
[1758502087249,2.06606518,114970.0,114960.0,0.17878745]
[1758502088325,2.04994705,114970.0,114960.0,0.17878745]
[1758502088543,2.02194276,114970.0,114960.0,0.17878745]
[1758502089284,2.64994705,114970.0,114960.0,0.17878745]
[1758502089517,2.63806337,114970.0,114960.0,0.17878745]
[1758502090378,2.9000337,114970.0,114960.0,0.17878745]
[1758502090580,7.97803799,114970.0,114960.0,0.17878745]
[1758502091217,7.71606914,114970.0,114960.0,0.17878745]
[1758502092011,7.68806485,114970.0,114960.0,0.17878745]
[1758502092219,4.84584485,114970.0,114960.0,0.17878745]
[1758502092428,2.5293228,114970.0,114960.0,0.18081745]
[1758502092634,2.5323128,114970.0,114960.0,0.17878745]
[1758502092860,2.2167128,114970.0,114960.0,0.18081745]
[1758502093086,2.5292428,114970.0,114960.0,0.20546745]
[1758502093326,2.5292428,114970.0,114960.0,0.18081745]
[1758502093521,2.59839038,114970.0,114960.0,0.18081745]
[1758502093737,2.61750127,114970.0,114960.0,0.17878745]
[1758502093962,2.65116696,114970.0,114960.0,0.17878745]
[1758502094182,2.64310795,114970.0,114960.0,0.17878745]
[1758502094608,2.12723168,114970.0,114960.0,0.17878745]
[1758502094790,2.33564938,114970.0,114960.0,0.17878745]
[1758502095040,2.62750938,114970.0,114960.0,0.18081745]
[1758502095448,2.21362828,114970.0,114960.0,0.18081745]
[1758502095670,2.52894828,114970.0,114960.0,0.20870745]
[1758502095886,2.53092828,114970.0,114960.0,0.17878745]
[1758502096096,2.55753828,114970.0,114960.0,0.17878745]
[1758502096733,2.03360058,114970.0,114960.0,0.17878745]
[1758502096943,2.64280795,114970.0,114960.0,0.17878745]
[1758502097151,2.63965795,114970.0,114960.0,0.18081745]
[1758502097364,2.61603795,114970.0,114960.0,0.18081745]
[1758502097575,2.30087795,114970.0,114960.0,0.17878745]
[1758502097784,1.82818381,114970.0,114960.0,0.17878745]
[1758502098019,2.66724151,114970.0,114960.0,0.17878745]
[1758502098236,2.70330745,114970.0,114960.0,0.17878745]
[1758502098448,2.6952458,114970.0,114960.0,0.17878745]
[1758502098700,2.64209465,114970.0,114960.0,0.17878745]
[1758502098906,7.30122857,114970.0,114960.0,0.17878745]
[1758502099120,7.56319742,114970.0,114960.0,0.17878745]
[1758502099316,7.30122857,114970.0,114960.0,0.17878745]
[1758502099581,6.98618857,114970.0,114960.0,0.17878745]
[1758502099795,7.30118857,114970.0,114960.0,0.17878745]
[1758502100009,7.56315742,114970.0,114960.0,0.17878745]
[1758502100224,7.30118857,114970.0,114960.0,0.17878745]
[1758502100463,7.57928437,114970.0,114960.0,0.17878745]
[1758502100682,7.56307742,114970.0,114960.0,0.17878745]
[1758502100900,7.56303742,114970.0,114960.0,0.17878745]
[1758502101301,7.57916656,114970.0,114960.0,0.17878745]
[1758502101512,7.24815742,114970.0,114960.0,0.17878745]
[1758502101745,5.36888428,114970.0,114960.0,0.17878745]
[1758502101963,3.51878428,114970.0,114960.0,0.17878745]
[1758502102177,3.63170461,114970.0,114960.0,0.20546745]
[1758502102402,2.64083414,114970.0,114960.0,0.18081745]
[1758502102627,2.63079137,114970.0,114960.0,0.20870745]
[1758502102850,2.94551137,114970.0,114960.0,0.20870745]
[1758502103068,2.94749137,114970.0,114960.0,0.20546745]
[1758502103281,2.94745137,114970.0,114960.0,0.20546745]
[1758502103504,3.02749245,114970.0,114960.0,0.18081745]
[1758502103714,3.03048245,114970.0,114960.0,0.17878745]
[1758502103928,2.53822963,114970.0,114960.0,0.17878745]
[1758502104136,3.06216733,114970.0,114960.0,0.17878745]
[1758502104634,2.53822963,114970.0,114960.0,0.17878745]
[1758502104847,3.06216733,114970.0,114960.0,0.17878745]
[1758502105699,8.40214047,114970.0,114960.0,0.17878745]
[1758502105903,8.14017162,114970.0,114960.0,0.17878745]
[1758502106546,4.83197162,114970.0,114960.0,0.17878745]
[1758502106999,3.32217162,114970.0,114960.0,0.17878745]
[1758502107228,3.29416733,114970.0,114960.0,0.17878745]
[1758502108116,2.64083625,114970.0,114960.0,0.18088745]
[1758502108353,2.95321625,114970.0,114960.0,0.20691745]
[1758502108576,3.2443751,114970.0,114960.0,0.17878745]
[1758502109011,8.2943751,114970.0,114960.0,0.17878745]
[1758502109235,8.32237939,114970.0,114960.0,0.17878745]
[1758502109457,8.40764906,114970.0,114960.0,0.17878745]
[1758502109676,8.39113806,114970.0,114960.0,0.17878745]
[1758502110138,8.41928996,114970.0,114960.0,0.17878745]
[1758502110347,8.42328996,114970.0,114960.0,0.17878745]
[1758502110780,8.42628996,114970.0,114960.0,0.17878745]
[1758502111601,8.42228996,114970.0,114960.0,0.17878745]
[1758502111819,8.42628996,114970.0,114960.0,0.17878745]
[1758502113189,8.39613806,114970.0,114960.0,0.17878745]
[1758502114073,8.42628996,114970.0,114960.0,0.17878745]
[1758502114717,8.41822508,114970.0,114960.0,0.17878745]
[1758502114928,8.42576795,114970.0,114960.0,0.17878745]
[1758502115357,8.42568795,114970.0,114960.0,0.17878745]
[1758502118153,7.6261405,114970.0,114960.0,0.17878745]
[1758502118365,8.41204705,114970.0,114960.0,0.17878745]
[1758502118581,8.41207839,114970.0,114960.0,0.17878745]
[1758502120221,8.41179839,114970.0,114960.0,0.17878745]
[1758502120881,8.41179839,114970.0,114940.0,0.0002]
[1758502120882,0.09172,114950.0,114940.0,0.0002]
[1758502121097,8.07334391,114950.0,114940.0,0.0006703]
[1758502121348,8.12801176,114950.0,114940.0,0.0006703]
[1758502121571,8.94107831,114950.0,114940.0,0.0006703]
[1758502121798,8.18134745,114950.0,114940.0,0.0006703]
[1758502122057,3.4933163,114950.0,114940.0,0.0006703]
[1758502122276,9.073254,114950.0,114940.0,0.0016703]
[1758502122489,8.23734745,114950.0,114940.0,0.0016703]
[1758502122731,9.017254,114950.0,114940.0,0.0006703]
[1758502122967,9.067254,114950.0,114940.0,0.0006703]
[1758502123218,9.074254,114950.0,114940.0,0.0016703]
[1758502123429,1.73589086,114930.0,114920.0,0.20557541]
[1758502123616,9.24052145,114930.0,114920.0,0.20557541]
[1758502123885,9.38773278,114930.0,114920.0,0.20557541]
[1758502124117,9.70089278,114930.0,114920.0,0.20557541]
[1758502124336,0.78590601,114920.0,114910.0,0.03537704]
[1758502124554,8.1591233,114920.0,114910.0,0.03537704]
[1758502124775,8.4742333,114920.0,114910.0,0.03537704]
[1758502125228,8.5242333,114920.0,114910.0,0.03537704]
[1758502125456,2.6077494,114900.0,114890.0,0.00162791]
[1758502125681,7.99458162,114900.0,114890.0,0.00162791]
[1758502125905,6.89563507,114900.0,114890.0,0.00685791]
[1758502126134,6.60351432,114900.0,114890.0,0.02975791]
[1758502126356,6.44336561,114900.0,114890.0,0.02975791]
[1758502126575,6.60430331,114900.0,114890.0,0.02975791]
[1758502126811,7.00253298,114900.0,114890.0,0.02975791]
[1758502127027,7.08268488,114900.0,114890.0,0.02975791]
[1758502127243,7.08268488,114900.0,114890.0,0.03775791]
[1758502127726,7.08368488,114900.0,114890.0,0.03975791]
[1758502127942,7.34768373,114900.0,114890.0,0.03975791]
[1758502128169,7.34768373,114900.0,114890.0,0.03662791]
[1758502128389,7.34768373,114900.0,114890.0,0.02162791]
[1758502128811,7.34768373,114900.0,114890.0,0.02372791]
[1758502129254,7.08571488,114900.0,114890.0,0.02372791]
[1758502129921,6.94821521,114900.0,114890.0,0.02685791]
[1758502130591,1.03688395,114900.0,114890.0,0.02685791]
[1758502130800,0.9988528,114900.0,114890.0,0.02685791]
[1758502131013,1.09928048,114900.0,114890.0,0.02685791]
[1758502131249,1.0291436,114900.0,114890.0,0.02685791]
[1758502131467,1.37638212,114900.0,114890.0,0.02685791]
[1758502131903,1.40653402,114900.0,114890.0,0.02685791]
[1758502132344,1.66850287,114900.0,114890.0,0.02685791]
[1758502132999,1.0592955,114900.0,114890.0,0.02685791]
[1758502133212,1.5832332,114900.0,114890.0,0.02685791]
[1758502133436,1.59726608,114900.0,114890.0,0.02685791]
[1758502134105,1.59717511,114900.0,114890.0,0.02685791]
[1758502134340,0.89917301,114900.0,114890.0,0.02685791]
[1758502134593,0.36703856,114900.0,114890.0,0.02685791]
[1758502134804,0.67943856,114900.0,114890.0,0.02685791]
[1758502135022,0.6134,114900.0,114890.0,0.21834541]
[1758502135215,1.0034,114900.0,114890.0,0.20093746]
[1758502135496,1.0024,114900.0,114890.0,0.19893746]
[1758502135713,1.0034,114900.0,114890.0,0.02985791]
[1758502135948,0.6534,114900.0,114890.0,0.20393746]
[1758502136170,0.3134,114900.0,114890.0,0.20393746]
[1758502136409,0.3134,114900.0,114890.0,0.19593746]
[1758502136625,0.3634,114900.0,114890.0,0.20693746]
[1758502137065,0.3134,114900.0,114890.0,0.20693746]
[1758502137291,0.3634,114900.0,114890.0,0.20693746]
[1758502137516,0.3134,114900.0,114890.0,0.29220713]
[1758502138407,0.001,114900.0,114890.0,0.29220713]
[1758502138642,0.31216,114910.0,114900.0,0.17405225]
[1758502138841,0.70216,114910.0,114900.0,0.20249225]
[1758502139543,0.79588293,114930.0,114900.0,0.28776192]
[1758502139765,0.79588293,114930.0,114920.0,0.17403411]
[1758502139766,0.49588293,114930.0,114920.0,0.17403411]
[1758502139994,1.14788293,114930.0,114920.0,0.17618411]
[1758502140218,1.14788293,114930.0,114920.0,0.20347411]
[1758502140437,1.0789501,114930.0,114920.0,0.20247411]
[1758502140967,0.6524701,114930.0,114920.0,0.20247411]
[1758502141160,0.3123901,114930.0,114920.0,0.28774378]
[1758502141426,0.0004701,114930.0,114920.0,0.28774378]
[1758502141903,0.3404701,114930.0,114920.0,0.28774378]
[1758502142138,0.3404701,114930.0,114920.0,0.11470967]
[1758502142390,0.3404701,114930.0,114920.0,0.02944]
[1758502142975,0.6404701,114930.0,114920.0,0.03344]
[1758502143130,0.6414701,114930.0,114920.0,0.03644]
[1758502143357,0.6414701,114930.0,114920.0,0.04644]
[1758502143358,0.6914701,114930.0,114920.0,0.04644]
[1758502143596,0.8367501,114930.0,114920.0,0.02646]
[1758502143806,0.8367501,114930.0,114920.0,0.00915]
[1758502144034,0.92201977,114930.0,114920.0,0.00915]
[1758502144663,1.14806229,114930.0,114920.0,0.007]
[1758502145177,0.88877366,114930.0,114910.0,0.02729]
[1758502145397,0.6516,114920.0,114910.0,0.02729]
[1758502145826,0.6516,114920.0,114910.0,0.02944]
[1758502146279,0.7016,114920.0,114910.0,0.02646]
[1758502146946,0.7526,114920.0,114910.0,0.03146]
[1758502147172,0.95342767,114920.0,114910.0,0.00715]
[1758502147389,0.97758767,114920.0,114910.0,0.005]
[1758502147616,1.57672157,114920.0,114910.0,0.01]
[1758502147837,1.97740157,114920.0,114910.0,0.01]
[1758502148063,1.8921319,114920.0,114910.0,0.01]
[1758502148801,1.80098798,114920.0,114910.0,0.01]
[1758502149039,2.24653608,114920.0,114910.0,0.01]
[1758502149269,2.25255453,114920.0,114910.0,0.01]
[1758502149464,1.80395313,114920.0,114910.0,0.005]
[1758502149735,1.8892228,114920.0,114910.0,0.005]
[1758502149984,0.39,114890.0,114880.0,79.96544948]
[1758502150195,0.70116,114890.0,114880.0,79.99195948]
[1758502150409,0.75116,114890.0,114880.0,79.98891948]
[1758502150899,0.84240395,114890.0,114880.0,79.98891948]
[1758502151129,1.0196535,114890.0,114880.0,79.96544948]
[1758502151365,1.0196535,114890.0,114880.0,79.94601461]
[1758502151366,1.13554488,114890.0,114880.0,79.94601461]
[1758502151593,1.15955488,114890.0,114880.0,79.95101461]
[1758502151810,1.15955488,114890.0,114880.0,79.71301461]
[1758502152268,1.51231715,114890.0,114880.0,79.71301461]
[1758502152547,1.54054589,114890.0,114880.0,79.71301461]
[1758502152761,1.12719096,114890.0,114880.0,79.71701461]
[1758502152982,1.09896222,114890.0,114880.0,79.71201461]
[1758502153243,1.09896222,114890.0,114880.0,79.70801461]
[1758502153244,1.09996222,114890.0,114880.0,79.70801461]
[1758502153457,0.87407189,114890.0,114880.0,79.70801461]
[1758502153681,0.78880222,114890.0,114880.0,79.70901461]
[1758502153914,11.1214711,114890.0,114880.0,79.70901461]
[1758502154371,10.7605111,114890.0,114880.0,79.70901461]
[1758502154631,10.78587754,114890.0,114880.0,79.70901461]
[1758502154862,11.5161702,114890.0,114880.0,79.70901461]
[1758502155107,10.87114721,114890.0,114880.0,79.70901461]
[1758502155347,11.06961754,114890.0,114880.0,79.73248461]
[1758502155589,11.4921602,114890.0,114880.0,79.70901461]
[1758502155847,11.54080376,114890.0,114880.0,79.70901461]
[1758502156065,10.8105111,114890.0,114880.0,79.70901461]
[1758502156622,11.52878472,114890.0,114880.0,79.70901461]
[1758502156626,11.1182211,114890.0,114880.0,79.70901461]
[1758502156723,10.7833311,114890.0,114880.0,79.70901461]
[1758502156968,11.06351981,114890.0,114880.0,79.73248461]
[1758502157177,10.75869703,114890.0,114880.0,79.70901461]
[1758502157392,11.48890969,114890.0,114880.0,79.73248461]
[1758502157612,11.10326251,114890.0,114880.0,79.73248461]
[1758502157857,11.06351981,114890.0,114880.0,79.73552461]
[1758502158065,11.51069603,114890.0,114880.0,79.73248461]
[1758502158322,11.54072304,114890.0,114880.0,79.70901461]
[1758502158541,12.25422145,114890.0,114880.0,79.70901461]
[1758502158756,11.80662005,114890.0,114880.0,79.70901461]
[1758502158980,12.22599271,114890.0,114880.0,79.70901461]
[1758502159410,11.80662005,114890.0,114880.0,79.70901461]
[1758502159625,11.91515271,114890.0,114880.0,79.70901461]
[1758502159833,12.22591271,114890.0,114880.0,79.70901461]
[1758502160277,12.25414145,114890.0,114880.0,79.70901461]
[1758502160495,12.25209756,114890.0,114880.0,79.70901461]
[1758502160713,12.2803263,114890.0,114880.0,79.70901461]
[1758502160919,16.91897621,114890.0,114880.0,79.70901461]
[1758502161126,17.33834887,114890.0,114880.0,79.70901461]
[1758502161606,16.91897621,114890.0,114880.0,79.70901461]
[1758502161851,17.33834887,114890.0,114880.0,79.70901461]
[1758502162303,16.91897621,114890.0,114880.0,79.70901461]
[1758502162520,17.02758887,114890.0,114880.0,79.70901461]
[1758502163000,17.33830887,114890.0,114880.0,79.70901461]
[1758502163472,16.91893621,114890.0,114880.0,79.70901461]
[1758502163663,17.33830144,114890.0,114880.0,79.70901461]
[1758502164158,17.0195663,114890.0,114880.0,79.70901461]
[1758502164376,17.21674789,114890.0,114880.0,79.70901461]
[1758502164616,16.79737523,114890.0,114880.0,79.70901461]
[1758502165050,17.21674789,114890.0,114880.0,79.70901461]
[1758502165447,16.79737523,114890.0,114880.0,79.70901461]
[1758502165651,17.21674789,114890.0,114880.0,79.70901461]
[1758502165876,15.39528789,114890.0,114880.0,79.70901461]
[1758502166071,15.69951756,114890.0,114880.0,79.70901461]
[1758502166696,17.40426562,114890.0,114880.0,79.70901461]
[1758502166900,17.70945595,114890.0,114880.0,79.70901461]
[1758502167106,17.4736574,114890.0,114880.0,79.70901461]
[1758502167541,17.7226574,114890.0,114880.0,79.70801461]
[1758502167728,17.02314239,114890.0,114880.0,79.70801461]
[1758502167902,16.96169594,114890.0,114880.0,79.70901461]
[1758502168117,16.61807724,114890.0,114880.0,79.70901461]
[1758502168316,16.61807724,114890.0,114880.0,79.70801461]
[1758502168317,16.87810789,114890.0,114880.0,79.70801461]
[1758502168548,16.89510789,114890.0,114880.0,79.70801461]
[1758502168872,16.98537756,114890.0,114880.0,79.70901461]
[1758502169323,16.99338475,114890.0,114880.0,79.70901461]
[1758502169551,16.68274475,114890.0,114880.0,79.70901461]
[1758502169781,16.05798789,114890.0,114880.0,79.70901461]
[1758502170008,16.13459789,114890.0,114880.0,79.70901461]
[1758502170684,16.14082663,114890.0,114880.0,79.70801461]
[1758502170890,16.44482663,114890.0,114880.0,79.70801461]
[1758502171098,16.12472364,114890.0,114880.0,79.70801461]
[1758502171320,16.56812993,114890.0,114880.0,79.70801461]
[1758502173551,16.94480993,114890.0,114880.0,79.70801461]
[1758502173762,16.60415929,114890.0,114880.0,79.70801461]
[1758502173965,16.91471929,114890.0,114880.0,79.70801461]
[1758502174616,16.60415929,114890.0,114880.0,79.70801461]
[1758502174831,16.54932055,114890.0,114880.0,79.70801461]
[1758502175055,14.98351898,114890.0,114880.0,79.73174461]
[1758502175505,12.52703196,114890.0,114880.0,79.73174461]
[1758502175724,12.47703196,114890.0,114880.0,79.73174461]
[1758502175937,12.11139419,114890.0,114880.0,79.73174461]
[1758502176163,12.59245353,114890.0,114880.0,79.73174461]
[1758502176384,11.89666386,114890.0,114880.0,79.73489461]
[1758502176634,12.22699196,114890.0,114880.0,79.73174461]
[1758502177130,12.26017386,114890.0,114880.0,79.70801461]
[1758502177334,12.23375386,114890.0,114880.0,79.70801461]
[1758502177545,12.28375386,114890.0,114880.0,79.70801461]
[1758502177764,12.36902353,114890.0,114880.0,79.70801461]
[1758502177988,12.34725227,114890.0,114880.0,79.70801461]
[1758502178255,17.44725227,114890.0,114880.0,79.70801461]
[1758502178466,17.82397227,114890.0,114880.0,79.70801461]
[1758502179427,17.7387026,114890.0,114880.0,79.70801461]
[1758502179630,18.12398811,114890.0,114880.0,79.70801461]
[1758502180478,18.12612966,114890.0,114880.0,79.70801461]
[1758502181122,17.46564966,114890.0,114880.0,79.70801461]
[1758502181331,18.16719358,114890.0,114880.0,79.70801461]
[1758502181545,18.19542232,114890.0,114880.0,79.70801461]
[1758502181807,18.24542232,114890.0,114880.0,79.70801461]
[1758502182029,18.29542232,114890.0,114880.0,79.69363109]
[1758502182259,18.29542232,114890.0,114880.0,79.6935313]
[1758502182484,17.87604966,114890.0,114880.0,79.6935313]
[1758502182910,18.29542232,114890.0,114880.0,79.6935313]
[1758502183135,18.29542232,114890.0,114880.0,79.68786212]
[1758502183136,18.71479498,114890.0,114880.0,79.68786212]
[1758502183347,13.61479498,114890.0,114880.0,79.67935816]
[1758502183594,18.66479498,114890.0,114880.0,79.67676416]
[1758502183801,18.71479498,114890.0,114880.0,79.67676416]
[1758502184024,19.01479498,114890.0,114880.0,79.67676416]
[1758502184236,18.95079463,114890.0,114880.0,79.25720884]
[1758502184461,13.90079463,114890.0,114880.0,78.03692417]
[1758502184687,19.00079463,114890.0,114880.0,77.99834656]
[1758502184936,19.00079463,114890.0,114880.0,77.97218884]
[1758502185151,19.00079463,114890.0,114880.0,77.87411953]
[1758502185378,19.00079463,114890.0,114880.0,77.80351253]
[1758502185589,19.00079463,114890.0,114880.0,77.77735481]
[1758502185821,19.00079463,114890.0,114880.0,77.75118339]
[1758502186036,18.93679463,114890.0,114880.0,77.72501197]
[1758502186251,17.78764931,114890.0,114880.0,77.69884055]
[1758502186466,18.63771463,114890.0,114880.0,77.67266913]
[1758502186681,18.68771463,114890.0,114880.0,77.67266913]
[1758502186884,18.70171463,114890.0,114880.0,77.67266913]
[1758502187094,18.70771463,114890.0,114880.0,77.67366913]
[1758502187298,18.34239463,114890.0,114880.0,77.67366913]
[1758502187545,13.60815463,114890.0,114880.0,77.67366913]
[1758502187787,18.70815463,114890.0,114880.0,77.67366913]
[1758502188626,18.65815463,114890.0,114880.0,77.66328979]
[1758502188837,18.65815463,114890.0,114880.0,77.65511118]
[1758502189042,18.70815463,114890.0,114880.0,77.65511118]
[1758502189257,18.21224273,114890.0,114880.0,77.65511118]
[1758502189456,17.81965201,114890.0,114880.0,77.65511118]
[1758502189684,18.28634846,114890.0,114880.0,77.65511118]
[1758502189887,18.78634846,114890.0,114880.0,77.65511118]
[1758502190171,18.28760314,114890.0,114880.0,77.65511118]
[1758502190393,19.12634846,114890.0,114880.0,77.65511118]
[1758502190595,14.07634846,114890.0,114880.0,77.65511118]
[1758502190762,19.12634846,114890.0,114880.0,77.65511118]
[1758502191940,19.29590846,114890.0,114880.0,77.65511118]
[1758502192183,18.82921201,114890.0,114880.0,77.65511118]
[1758502192417,19.29729796,114890.0,114880.0,77.65511118]